bitfinex/quotes_ETHUSD_20250508
["timestamp","ask_amount","ask_price","bid_price","bid_amount"]
[1746671949743,6.71675812,1842.5,1841.9,6.2551779]
[1746671949946,6.71673316,1842.5,1842.1,5.42840039]
[1746671950427,5.73273947,1842.4,1842.0,5.42858921]
[1746671950639,0.04046733,1842.3,1842.2,0.12753206]
[1746671950813,5.42841044,1842.2,1841.9,0.8262]
[1746671951013,0.04046733,1842.1,1841.9,6.25524597]
[1746671951334,0.04046733,1842.2,1841.9,6.25524597]
[1746671951537,0.04046733,1842.2,1842.0,5.42886397]
[1746671951735,5.42872356,1842.1,1841.9,0.8262]
[1746671951935,0.04046733,1842.0,1841.7,6.25366497]
[1746671952140,0.04046733,1842.1,1841.8,5.42932331]
[1746671952337,0.04046733,1842.3,1842.0,5.42875936]
[1746671952646,6.33646733,1842.3,1841.9,5.42898398]
[1746671952836,0.3049585,1842.2,1841.9,5.42894669]
[1746671953143,0.3049585,1842.2,1841.9,5.97733839]
[1746671953314,0.3049585,1842.2,1842.0,5.42874297]
[1746671953518,0.3049585,1842.1,1841.9,5.42905403]
[1746671953943,0.3049585,1842.1,1842.0,5.42888165]
[1746671954450,0.3049585,1842.2,1841.9,5.42905403]
[1746671954944,0.3049585,1842.2,1841.8,5.42934191]
[1746671955247,0.3049585,1842.1,1841.8,5.42930319]
[1746671955423,0.3049585,1842.1,1841.9,5.4291451]
[1746671955945,0.3049585,1842.1,1842.0,5.42888165]
[1746671956147,0.3049585,1842.2,1842.1,5.42858693]
[1746671956323,0.3049585,1842.2,1841.9,5.42903558]
[1746671956847,5.46857538,1842.3,1841.9,5.42903558]
[1746671957627,5.42847535,1842.2,1841.8,5.4293078]
[1746671957830,0.04046733,1842.1,1841.8,5.4293078]
[1746671958155,5.4692601,1842.1,1841.7,6.25376981]
[1746671958550,5.7802601,1842.1,1841.7,5.42966981]
[1746671959066,0.30505854,1842.0,1841.7,5.4295531]
[1746671959361,0.30505854,1842.0,1841.6,5.86450247]
[1746671959531,0.30505854,1842.0,1841.7,5.42975111]
[1746671959861,5.78025142,1842.1,1841.7,5.42975111]
[1746671960088,5.4289102,1842.0,1841.6,7.15784052]
[1746671960353,10.8580374,1842.0,1841.6,7.15776314]
[1746671960558,5.73973336,1842.1,1841.7,5.42968359]
[1746671960741,12.32586494,1842.1,1841.7,5.42968359]
[1746671961049,5.42928517,1841.9,1841.6,0.4346328]
[1746671961251,0.04046733,1841.9,1841.6,5.86448628]
[1746671961634,0.04046733,1841.9,1841.6,11.29435442]
[1746671962255,0.04046733,1841.9,1841.6,0.4346328]
[1746671962458,5.42929978,1841.9,1841.6,0.4346328]
[1746671962619,0.04046733,1841.8,1841.6,0.4346328]
[1746671962963,5.42976597,1841.7,1841.6,0.4346328]
[1746671963122,5.7812333,1841.7,1841.6,0.4346328]
[1746671964422,6.58590399,1841.7,1841.6,0.4346328]
[1746671964748,6.58590399,1841.7,1841.6,0.55692081]
[1746671966248,0.311,1841.1,1840.8,10.07366605]
[1746671966448,12.03896467,1841.3,1840.9,5.43199462]
[1746671966657,5.47183497,1841.2,1840.8,10.07362115]
[1746671966863,0.04046733,1841.2,1840.9,5.43187253]
[1746671967023,0.04046733,1841.2,1840.9,10.8637821]
[1746671967223,0.04046733,1841.2,1840.9,5.43187253]
[1746671967654,0.04046733,1841.2,1841.0,5.43176913]
[1746671968154,0.44987759,1841.2,1841.0,5.43176913]
[1746671968356,0.40941026,1841.2,1841.0,5.43159476]
[1746671968544,6.33846733,1841.3,1841.0,5.43156839]
[1746671969129,0.04046733,1841.3,1841.1,5.43149406]
[1746671969421,6.298,1841.3,1840.9,5.48628172]
[1746671969632,0.5,1841.2,1841.0,5.43164519]
[1746671969857,0.04046733,1841.2,1841.0,5.43164519]
[1746671970554,6.33846733,1841.3,1840.8,10.07365905]
[1746671970855,12.9464321,1841.3,1840.9,5.43207164]
[1746671971054,12.90596477,1841.3,1840.9,5.43207164]
[1746671971260,0.04046733,1841.2,1840.8,10.07360069]
[1746671971462,5.7827665,1841.2,1840.8,10.07360069]
[1746671971955,5.43175044,1841.1,1840.8,4.64135315]
[1746671972254,0.04046733,1841.0,1840.8,4.64135315]
[1746671973141,6.61,1840.9,1840.8,4.64135315]
[1746671973347,0.04046733,1841.0,1840.8,4.64135315]
[1746671973548,6.299,1840.9,1840.8,4.64135315]
[1746671973762,0.04046733,1841.0,1840.9,0.11833198]
[1746671973949,0.04046733,1841.0,1840.8,4.64135315]
[1746671973950,0.311,1840.9,1840.8,4.64135315]
[1746671975266,0.35146733,1840.9,1840.8,4.64135315]
[1746671976357,5.78359292,1840.9,1840.8,4.64135315]
[1746671979559,8.78359292,1840.9,1840.8,4.64135315]
[1746671979767,9.83359292,1840.9,1840.8,4.64135315]
[1746671979926,12.68621604,1840.9,1840.8,4.64135315]
[1746671980147,12.64574871,1840.9,1840.8,4.64135315]
[1746671980348,23.57821936,1840.9,1840.8,4.64135315]
[1746671980648,23.035819,1840.9,1840.8,4.64135315]
[1746671981473,23.035819,1840.9,1840.8,1e-08]
[1746671981848,22.76574871,1840.9,1840.8,1e-08]
[1746671983962,42.34274871,1840.9,1840.8,1e-08]
[1746671984377,48.63374871,1840.9,1840.8,1e-08]
[1746671985377,5.98301097,1840.6,1840.5,5.72639192]
[1746671985570,7.4760624,1840.6,1840.5,5.72639192]
[1746671985985,7.4760624,1840.6,1840.5,5.85874649]
[1746671986494,7.77890598,1840.6,1840.5,5.85874649]
[1746671986792,10.77890598,1840.6,1840.5,5.72639192]
[1746671988154,10.4760624,1840.6,1840.5,5.85994595]
[1746671988355,10.4760624,1840.6,1840.5,0.13355403]
[1746671988569,5.43388281,1840.4,1839.9,5.43490134]
[1746671988793,11.76648906,1840.3,1840.0,0.13355403]
[1746671988993,6.292,1840.3,1840.1,0.787]
[1746671989205,6.292,1840.3,1840.1,6.22123746]
[1746671989497,0.40980663,1840.3,1840.2,0.13355403]
[1746671989699,0.04046733,1840.4,1840.2,5.56762704]
[1746671989895,6.292,1840.6,1840.3,6.22067689]
[1746671990101,0.04046733,1840.6,1840.3,0.92055403]
[1746671990295,6.33246733,1840.6,1840.3,6.35419928]
[1746671991496,19.577,1840.9,1840.6,5.43301097]
[1746671991672,19.577,1840.9,1840.6,6.05597536]
[1746671991860,19.577,1840.9,1840.7,0.12875729]
[1746671992296,19.577,1840.9,1840.7,5.5612609]
[1746671992473,19.577,1840.9,1840.8,0.8151]
[1746671993004,3.90410999,1841.6,1840.8,0.8151]
[1746671993005,5.43027623,1841.6,1840.9,6.24722559]
[1746671993159,5.47074356,1841.6,1841.3,0.8151]
[1746671993359,5.47074356,1841.6,1841.4,0.12824352]
[1746671993559,5.43035568,1841.5,1841.3,0.8151]
[1746671993795,0.04046733,1841.4,1841.3,0.8151]
[1746671994501,5.47134686,1841.4,1841.1,0.794]
[1746671994720,5.43110378,1841.3,1841.1,0.794]
[1746671994870,0.04046733,1841.2,1841.1,0.794]
[1746671995078,0.04046733,1841.3,1841.1,0.794]
[1746671995283,5.43145422,1841.2,1840.9,0.794]
[1746671995516,5.47220183,1841.1,1840.9,0.794]
[1746671995662,5.47220183,1841.1,1841.0,0.11437427]
[1746671996110,5.47220183,1841.1,1840.9,0.794]
[1746671996297,5.47220183,1841.1,1841.0,0.11437427]
[1746671996966,6.56254707,1841.1,1841.0,0.11437427]
[1746671997299,7.27260823,1841.1,1841.0,0.11437427]
[1746671997700,10.86474369,1840.9,1840.5,0.8328]
[1746671997906,5.47290349,1840.8,1840.5,0.8328]
[1746671998197,5.47290349,1840.8,1840.6,0.11437427]
[1746671998999,6.56341625,1840.8,1840.6,0.11437427]
[1746671999800,5.43271581,1840.7,1840.6,0.11437427]
[1746672000306,12.06834444,1840.7,1840.6,0.11437427]
[1746672000604,5.43315707,1840.6,1840.3,0.821]
[1746672000804,0.04046733,1840.5,1840.4,0.11437427]
[1746672001169,0.04046733,1840.6,1840.4,0.11437427]
[1746672001497,1.09051276,1840.8,1840.5,5.43318115]
[1746672001498,6.291,1840.8,1840.5,5.43318115]
[1746672001813,0.04046733,1840.9,1840.6,5.4329819]
[1746672001985,5.47268139,1840.9,1840.7,0.11437427]
[1746672002300,0.04046733,1840.9,1840.7,5.43269774]
[1746672002499,0.04046733,1840.9,1840.8,0.11437427]
[1746672002666,5.47259292,1840.9,1840.8,0.11437427]
[1746672002873,0.04046733,1840.9,1840.8,0.11437427]
[1746672003071,5.43294474,1840.7,1840.5,0.7892]
[1746672003273,0.04046733,1840.6,1840.5,0.7892]
[1746672003894,5.47321672,1840.7,1840.5,0.7892]
[1746672004093,5.47321672,1840.7,1840.2,6.23830781]
[1746672004401,5.47321672,1840.7,1840.3,5.43387308]
[1746672004594,6.56378582,1840.7,1840.3,5.43387308]
[1746672004903,0.04046733,1840.7,1840.3,5.43366037]
[1746672005201,0.04046733,1840.7,1840.5,0.7823]
[1746672005600,0.04046733,1840.8,1840.5,0.7823]
[1746672005802,0.04046733,1840.8,1840.5,6.2156019]
[1746672006004,6.33146733,1840.9,1840.5,6.2156019]
[1746672006205,11.76373301,1840.9,1840.5,6.83716209]
[1746672006504,11.72326568,1840.9,1840.5,0.7823]
[1746672006704,0.04046733,1840.8,1840.5,0.7823]
[1746672007101,0.04046733,1840.8,1840.5,6.21558617]
[1746672007307,0.04046733,1840.8,1840.6,5.43294681]
[1746672007492,0.04046733,1840.9,1840.6,5.43294681]
[1746672007693,11.72302345,1841.0,1840.6,5.43294681]
[1746672007694,6.9210489,1841.1,1840.7,5.43258239]
[1746672007900,10.12,1841.3,1841.1,0.7914]
[1746672008098,35.54063081,1841.7,1841.1,0.7914]
[1746672008273,19.58,1841.7,1841.4,6.25882555]
[1746672008475,19.58,1841.7,1841.4,0.8282]
[1746672008707,5.4706828,1841.6,1841.4,0.8282]
[1746672009201,0.04046733,1841.6,1841.2,0.8282]
[1746672009408,5.43052856,1841.5,1841.2,0.8282]
[1746672009608,0.04046733,1841.6,1841.2,0.8282]
[1746672009796,0.04046733,1841.6,1841.2,6.25924518]
[1746672009994,5.47064048,1841.6,1841.2,0.8282]
[1746672010172,5.43053949,1841.5,1841.2,0.8282]
[1746672010380,2.81805353,1841.6,1841.2,6.25916902]
[1746672010581,0.04046733,1841.6,1841.3,5.55015374]
[1746672011314,0.04046733,1841.6,1841.3,0.11925417]
[1746672011520,5.47059183,1841.6,1841.3,0.11925417]
[1746672012210,0.04046733,1841.6,1841.3,5.55013461]
[1746672013381,0.5,1841.5,1841.3,0.11925417]
[1746672013781,0.5,1841.5,1841.3,5.55017121]
[1746672014314,0.5,1841.5,1841.4,5.43065059]
[1746672014677,5.47007158,1841.8,1841.4,6.3239192]
[1746672015183,0.04046733,1841.8,1841.5,5.43035119]
[1746672015620,0.04046733,1841.8,1841.6,0.11916861]
[1746672016111,0.04046733,1841.8,1841.5,5.43035177]
[1746672016311,14.7059632,1842.0,1841.7,6.37298584]
[1746672016312,6.277,1842.0,1841.7,6.37298584]
[1746672016513,6.31746733,1842.0,1841.7,6.25381723]
[1746672016810,6.31746733,1842.0,1841.8,0.10787214]
[1746672017581,6.277,1842.2,1841.8,0.10787214]
[1746672017808,0.04046733,1842.1,1841.8,5.53720566]
[1746672018987,5.46905601,1842.1,1841.8,0.10787214]
[1746672019487,0.04046733,1842.1,1841.8,0.10787214]
[1746672020201,0.04046733,1842.1,1841.8,0.74946487]
[1746672020408,19.573,1842.5,1842.1,5.42854357]
[1746672020598,19.573,1842.5,1842.2,0.92623403]
[1746672021105,11.70333662,1842.6,1842.2,0.92623403]
[1746672021299,0.04046733,1842.5,1842.2,0.92623403]
[1746672021517,0.04046733,1842.5,1842.2,6.35449376]
[1746672021716,5.46741581,1842.7,1842.3,5.4279883]
[1746672022128,5.46741581,1842.7,1842.2,6.88420911]
[1746672022336,5.46741581,1842.7,1842.4,0.10573403]
[1746672022638,5.46741581,1842.7,1842.5,0.10573403]
[1746672022930,5.46741581,1842.7,1842.3,5.42783175]
[1746672023436,5.46741581,1842.7,1842.4,0.10573403]
[1746672023607,5.46741581,1842.7,1842.3,5.42783175]
[1746672023805,5.46741581,1842.7,1842.4,0.10573403]
[1746672024014,0.04046733,1842.7,1842.3,10.85561909]
[1746672024215,5.46739149,1842.7,1842.5,0.10573403]
[1746672024397,5.46739149,1842.7,1842.3,5.42778734]
[1746672024834,5.46739149,1842.7,1842.2,6.93833557]
[1746672025018,5.42713925,1842.6,1842.2,6.93833557]
[1746672025223,5.46739149,1842.7,1842.3,5.42787321]
[1746672025419,5.46733007,1842.7,1842.3,6.6644199]
[1746672025620,5.46741057,1842.7,1842.3,6.66458209]
[1746672027029,0.04046733,1842.7,1842.4,5.42768527]
[1746672027340,5.46733447,1842.7,1842.3,6.66442515]
[1746672027915,0.04046733,1842.7,1842.4,5.42765588]
[1746672028138,0.04046733,1842.8,1842.5,0.802]
[1746672028335,5.46700336,1842.8,1842.5,0.802]
[1746672028638,0.04046733,1842.8,1842.5,0.802]
[1746672028952,5.46714766,1842.8,1842.5,0.802]
[1746672029120,0.04046733,1842.8,1842.5,0.802]
[1746672029643,5.4670876,1842.8,1842.5,0.802]
[1746672031748,10.89385883,1842.8,1842.5,0.802]
[1746672031924,5.4670876,1842.8,1842.6,0.22909069]
[1746672032540,30.0,1843.3,1842.6,5.71028829]
[1746672032759,5.42596316,1843.0,1842.6,6.36153962]
[1746672032949,5.46643049,1843.0,1842.6,6.36153962]
[1746672033250,5.46643049,1843.0,1842.6,6.36146963]
[1746672034147,5.46612371,1843.1,1842.6,6.36158795]
[1746672034454,5.42593892,1843.0,1842.6,6.36158795]
[1746672034649,5.42593892,1843.0,1842.6,11.78855931]
[1746672034821,5.42593892,1843.0,1842.6,6.30729088]
[1746672035858,5.42593892,1843.0,1842.6,6.36147916]
[1746672036043,5.42593892,1843.0,1842.6,11.78836852]
[1746672036235,5.42593892,1843.0,1842.6,6.30720888]
[1746672036454,5.42593892,1843.0,1842.6,6.36147337]
[1746672038058,5.42593892,1843.0,1842.6,11.78836391]
[1746672038223,5.42593892,1843.0,1842.6,6.30720888]
[1746672038428,5.42593892,1843.0,1842.6,6.36151616]
[1746672038929,5.42593892,1843.0,1842.6,11.78842769]
[1746672039123,5.46617581,1843.1,1842.7,5.42681868]
[1746672039326,5.42599839,1843.0,1842.8,0.22094359]
[1746672039528,5.46669772,1842.9,1842.6,6.07814036]
[1746672039723,5.42664592,1842.8,1842.2,6.21775283]
[1746672040040,5.42683667,1842.7,1842.3,5.4279443]
[1746672040345,5.42683667,1842.7,1842.4,0.22094359]
[1746672040719,5.42683667,1842.7,1842.3,10.85558484]
[1746672040931,5.42683667,1842.7,1842.5,0.22094359]
[1746672041135,5.42683667,1842.7,1842.4,5.42769663]
[1746672041344,5.42683667,1842.7,1842.6,0.22094359]
[1746672041546,5.42683667,1842.7,1842.4,5.42769663]
[1746672041744,5.42671217,1842.8,1842.6,0.22094359]
[1746672042060,5.4671795,1842.8,1842.4,5.42769663]
[1746672042222,5.4671795,1842.8,1842.5,0.22196876]
[1746672042659,5.42694803,1842.7,1842.3,10.85558169]
[1746672042860,5.4671795,1842.8,1842.4,5.65006865]
[1746672043663,10.89396588,1842.8,1842.4,5.65006865]
[1746672043837,5.4671795,1842.8,1842.4,5.65006865]
[1746672044355,10.89394644,1842.8,1842.4,0.22248139]
[1746672044558,5.42696535,1842.7,1842.4,0.22248139]
[1746672044757,5.42696535,1842.7,1842.2,0.7895]
[1746672044957,5.77858119,1842.6,1842.5,0.22239595]
[1746672045131,5.42796765,1842.4,1842.0,0.7983]
[1746672045327,5.46843498,1842.4,1842.0,0.7983]
[1746672045532,5.42803186,1842.3,1842.1,0.20416811]
[1746672045863,5.42829225,1842.2,1842.1,0.20416811]
[1746672046161,5.77975958,1842.2,1842.1,0.20416811]
[1746672046348,6.90053872,1842.2,1842.1,0.20416811]
[1746672046550,5.42899106,1842.0,1841.7,0.8076]
[1746672047161,5.42876836,1842.1,1841.7,0.8076]
[1746672047771,0.311,1842.2,1841.7,0.8076]
[1746672047953,5.42908715,1842.0,1841.7,0.8076]
[1746672048255,5.42908715,1842.0,1841.6,0.802]
[1746672048256,5.42903354,1842.0,1841.6,0.802]
[1746672048460,6.14949494,1842.2,1841.6,0.802]
[1746672048659,5.42938197,1841.9,1841.6,0.802]
[1746672048830,5.42954659,1841.8,1841.6,0.802]
[1746672049543,5.42938197,1841.9,1841.6,0.802]
[1746672049859,5.42951176,1841.8,1841.6,0.802]
[1746672050251,5.42976597,1841.7,1841.6,0.802]
[1746672050968,5.43023883,1841.6,1841.4,0.7938]
[1746672051269,5.42993589,1841.7,1841.4,1.17318]
[1746672051570,5.42993589,1841.7,1841.4,0.7938]
[1746672051934,5.43035568,1841.5,1841.4,0.7938]
[1746672052559,5.43035568,1841.5,1841.2,0.7852]
[1746672052766,5.4307595,1841.4,1841.2,0.7852]
[1746672052971,5.43035568,1841.5,1841.2,0.7852]
[1746672053131,5.43035568,1841.5,1841.2,1.48922]
[1746672053971,5.430244,1841.6,1841.2,1.48922]
[1746672054175,5.430244,1841.6,1841.2,6.92032041]
[1746672054378,5.42997635,1841.7,1841.3,5.43091542]
[1746672054679,10.86000216,1841.7,1841.3,5.43091542]
[1746672054834,5.43017119,1841.6,1841.3,0.69201354]
[1746672055686,5.43017119,1841.6,1841.4,0.2180999]
[1746672055865,5.43017119,1841.6,1841.3,0.69201354]
[1746672056066,5.43017119,1841.6,1841.4,0.2180999]
[1746672056268,5.43035568,1841.5,1841.3,0.69201354]
[1746672056586,5.43035568,1841.5,1841.4,0.2180999]
[1746672056787,5.43035568,1841.5,1841.2,1.48922]
[1746672057084,5.43035568,1841.5,1841.3,0.2180999]
[1746672057661,5.43022187,1841.6,1841.3,0.2180999]
[1746672057881,5.43040188,1841.5,1841.3,0.2180999]
[1746672058061,5.43022187,1841.6,1841.3,0.2180999]
[1746672058575,5.43022187,1841.6,1841.3,0.93195355]
[1746672058782,5.43035786,1841.5,1841.3,0.93195355]
[1746672058952,5.43035786,1841.5,1841.3,0.2180999]
[1746672059156,5.42995118,1841.7,1841.3,5.70327853]
[1746672059358,10.85999669,1841.7,1841.3,0.27240288]
[1746672059575,5.42995118,1841.7,1841.3,0.27240288]
[1746672059783,5.43008632,1841.6,1841.3,0.27240288]
[1746672060090,5.43008632,1841.6,1841.3,0.9916747]
[1746672062193,5.43043964,1841.5,1841.3,0.93737172]
[1746672062494,5.43023055,1841.6,1841.3,0.2180999]
[1746672062791,8.74165059,1841.4,1841.3,0.2180999]
[1746672062979,5.43199115,1841.0,1840.6,0.7527]
[1746672063186,11.72988423,1841.2,1840.7,5.70870319]
[1746672063503,5.4314169,1841.2,1840.8,5.43239617]
[1746672063705,5.43086548,1841.4,1841.0,0.8069]
[1746672063872,6.258,1841.3,1841.0,0.8069]
[1746672064204,6.258,1841.3,1841.1,0.22485655]
[1746672064765,11.68897291,1841.3,1841.1,0.22485655]
[1746672065098,5.43124049,1841.2,1841.1,0.22485655]
[1746672065398,5.43124049,1841.2,1840.7,6.62192574]
[1746672065596,5.43124049,1841.2,1840.8,5.6576867]
[1746672065771,5.43124049,1841.2,1840.8,6.88564794]
[1746672065973,11.68911492,1841.3,1840.9,6.2426211]
[1746672066279,11.68911492,1841.3,1841.0,0.22605449]
[1746672066993,6.258,1841.3,1841.0,0.22605449]
[1746672067200,6.29846733,1841.3,1841.0,0.22605449]
[1746672067400,0.04046733,1841.3,1841.0,5.6577833]
[1746672067603,0.35146733,1841.7,1841.3,0.7852]
[1746672067808,11.68914133,1841.6,1841.4,0.22536993]
[1746672067983,11.68914133,1841.6,1841.3,0.7852]
[1746672068184,11.68914133,1841.6,1841.4,0.22382988]
[1746672068383,11.68914133,1841.6,1841.3,0.7852]
[1746672068709,11.68914133,1841.6,1841.4,0.22382988]
[1746672069006,11.68914133,1841.6,1841.3,0.7852]
[1746672069210,11.68914133,1841.6,1841.4,0.22382988]
[1746672069370,11.68914133,1841.6,1841.2,5.43110276]
[1746672069570,5.47084197,1841.5,1841.3,0.22382988]
[1746672069779,5.47084197,1841.5,1841.1,6.20691164]
[1746672070073,11.70770603,1841.6,1841.2,5.65408441]
[1746672070321,11.6672387,1841.6,1841.2,5.65408441]
[1746672070519,5.43038327,1841.5,1841.2,0.22297442]
[1746672070719,5.4708506,1841.5,1841.2,0.22297442]
[1746672070925,5.4708506,1841.5,1841.1,6.20702053]
[1746672071234,5.43124173,1841.2,1840.8,9.18661676]
[1746672071416,5.74165059,1841.4,1840.9,0.22477076]
[1746672071417,5.47157964,1841.3,1840.9,0.22477076]
[1746672071620,5.43141881,1841.2,1840.9,0.22477076]
[1746672071825,0.04046733,1841.1,1840.9,0.22477076]
[1746672072342,5.47188614,1841.2,1840.9,0.22477076]
[1746672073028,0.04046733,1841.2,1840.9,5.65689361]
[1746672073836,0.04046733,1841.2,1840.9,0.22477076]
[1746672074047,5.47181675,1841.2,1840.9,0.22477076]
[1746672074233,5.74261795,1841.1,1840.9,0.22477076]
[1746672074408,11.97961795,1841.1,1840.7,5.43248079]
[1746672074609,11.97961795,1841.1,1840.8,0.22716637]
[1746672074610,6.548,1841.1,1840.8,0.22716637]
[1746672074809,0.35146733,1841.1,1840.8,5.65956819]
[1746672075636,11.66842337,1841.2,1840.8,5.65956819]
[1746672075938,11.66842337,1841.2,1840.8,5.65937509]
[1746672076105,5.43142337,1841.2,1840.8,5.65937509]
[1746672076313,5.43142337,1841.2,1840.8,6.88503105]
[1746672076920,5.43142337,1841.2,1840.8,12.31721672]
[1746672077107,5.43142337,1841.2,1840.8,6.885008]
[1746672077754,5.43142337,1841.2,1840.8,12.31721]
[1746672077957,5.4718907,1841.2,1840.8,6.885008]
[1746672078334,5.47189502,1841.2,1840.8,0.22716637]
[1746672078540,11.98008704,1841.3,1840.9,5.43211753]
[1746672078541,11.98016431,1841.3,1840.9,5.43211753]
[1746672078726,11.98016431,1841.3,1840.8,11.09163494]
[1746672078933,5.43125584,1841.2,1841.0,0.22725194]
[1746672079263,5.43125584,1841.2,1841.1,0.22725194]
[1746672079444,5.43125584,1841.2,1840.8,5.43221703]
[1746672079445,7.21286518,1841.2,1840.8,5.43221703]
[1746672079644,5.43167238,1841.1,1840.9,0.22725194]
[1746672079849,5.43167238,1841.1,1840.7,5.43256181]
[1746672080022,5.47213971,1841.1,1840.8,0.22785096]
[1746672080746,7.17242855,1841.2,1840.8,5.66005979]
[1746672080930,5.47175387,1841.2,1840.8,5.66005979]
[1746672081459,5.43169885,1841.1,1840.8,0.22785096]
[1746672081619,5.47186496,1841.2,1840.8,5.66015464]
[1746672082324,10.90335939,1841.2,1840.8,5.66015464]
[1746672082654,5.43155872,1841.1,1840.8,5.66015464]
[1746672083253,5.47186192,1841.2,1840.8,5.66015464]
[1746672083941,5.43156456,1841.1,1840.8,5.66015464]
[1746672084915,0.04046733,1841.2,1840.8,5.66015464]
[1746672085241,6.67398588,1841.2,1840.8,5.66015464]
[1746672086051,12.10548615,1841.2,1840.8,5.66015464]
[1746672086256,1.20205828,1841.2,1840.8,5.66026589]
[1746672086421,6.673913,1841.2,1840.8,5.66026589]
[1746672086922,0.30478664,1841.1,1840.8,5.66026589]
[1746672087120,0.30478664,1841.1,1840.9,0.7944]
[1746672087532,5.47185472,1841.2,1841.0,0.23093114]
[1746672087754,11.98006757,1841.3,1841.0,0.23093114]
[1746672088255,0.30483532,1841.2,1841.0,0.23093114]
[1746672089087,17.41127739,1841.3,1841.0,0.23093114]
[1746672089252,13.72119531,1841.3,1841.0,0.23093114]
[1746672090055,5.4312492,1841.2,1841.0,0.23093114]
[1746672090749,13.72119531,1841.3,1841.0,0.23093114]
[1746672091157,5.47170986,1841.2,1841.0,0.23093114]
[1746672091530,0.30502906,1841.1,1841.0,0.23093114]
[1746672092656,0.8827156,1841.1,1841.0,0.23093114]
[1746672092866,0.30502906,1841.1,1841.0,0.23093114]
[1746672093459,11.66912893,1841.3,1841.0,0.23093114]
[1746672094058,0.30520211,1841.2,1841.0,0.23093114]
[1746672094769,0.30520211,1841.2,1841.0,5.71692814]
[1746672094957,5.47128759,1841.4,1841.0,5.71692814]
[1746672095164,6.84469724,1841.4,1841.0,5.71692814]
[1746672095579,6.84469724,1841.4,1841.0,5.71689824]
[1746672095743,0.30518739,1841.3,1841.1,5.43152828]
[1746672096148,0.30518739,1841.3,1841.2,0.23084556]
[1746672096677,0.30518739,1841.3,1841.2,6.48588605]
[1746672097681,11.97918533,1841.6,1841.2,6.48588605]
[1746672097871,0.04046733,1841.5,1841.2,6.48588605]
[1746672098246,5.47083562,1841.5,1841.2,1.05464556]
[1746672098752,0.30515998,1841.4,1841.2,1.05464556]
[1746672098955,0.30515998,1841.4,1841.2,6.25498082]
[1746672099360,0.30515998,1841.4,1841.3,0.22947639]
[1746672100984,0.30515998,1841.4,1841.3,6.36317296]
[1746672101172,0.30515998,1841.4,1841.3,8.95388331]
[1746672101486,5.46920625,1842.1,1841.7,6.20103514]
[1746672101790,5.46920625,1842.1,1841.8,0.22613963]
[1746672102571,31.62839145,1842.2,1841.8,0.22613963]
[1746672102572,19.572,1842.2,1841.8,5.65557724]
[1746672102779,0.311,1842.3,1841.9,5.42905115]
[1746672102952,0.04046733,1842.4,1842.0,6.23534769]
[1746672103165,0.04046733,1842.4,1842.0,0.8067]
[1746672103369,5.42826145,1842.3,1842.1,0.22613963]
[1746672104292,5.46836181,1842.4,1842.1,0.22613963]
[1746672104586,5.42810717,1842.3,1842.1,0.22613963]
[1746672104979,5.4685745,1842.3,1842.1,0.22613963]
[1746672105714,5.42829225,1842.2,1842.1,0.22613963]
[1746672106361,5.42829225,1842.2,1841.8,6.25890191]
[1746672106860,5.42829225,1842.2,1841.9,0.2219493]
[1746672107059,10.85684717,1842.2,1841.8,6.25890191]
[1746672107275,5.42829225,1842.2,1841.9,0.2219493]
[1746672107595,5.42829225,1842.2,1841.8,6.25890191]
[1746672107791,5.42829225,1842.2,1842.0,0.2219493]
[1746672108001,6.51798222,1842.2,1841.8,6.25890191]
[1746672108496,6.51798222,1842.2,1841.9,0.2219493]
[1746672108700,6.51798222,1842.2,1841.8,6.25890191]
[1746672108904,6.51798222,1842.2,1841.9,0.2219493]
[1746672109199,6.51798222,1842.2,1841.8,0.8295]
[1746672109502,6.55844955,1842.2,1841.8,6.25896951]
[1746672109702,6.55844955,1842.2,1841.9,0.2219493]
[1746672109890,6.55844955,1842.2,1841.8,6.25896951]
[1746672110095,6.55844955,1842.2,1841.9,0.2219493]
[1746672110283,6.55844955,1842.2,1841.8,6.25893452]
[1746672110483,6.55844955,1842.2,1841.9,0.2219493]
[1746672110694,6.55844955,1842.2,1841.8,6.25893452]
[1746672111005,5.42860527,1842.1,1841.9,0.2219493]
[1746672111175,6.5181526,1842.2,1841.9,0.2219493]
[1746672111375,6.55861993,1842.2,1841.8,6.25886823]
[1746672111879,5.46892996,1842.2,1841.9,0.21570563]
[1746672112181,5.46892996,1842.2,1841.8,6.25883246]
[1746672112378,5.46892996,1842.2,1842.0,0.21570563]
[1746672112707,5.46892996,1842.2,1842.1,0.21570563]
[1746672112873,5.46892996,1842.2,1841.8,6.25883246]
[1746672113074,5.46892996,1842.2,1841.9,0.21570563]
[1746672113399,5.46892996,1842.2,1841.8,6.25883246]
[1746672113600,5.46892996,1842.2,1842.0,0.21570563]
[1746672113779,5.46892996,1842.2,1841.8,6.25883246]
[1746672113978,5.46892996,1842.2,1842.1,0.21570563]
[1746672114191,5.46892996,1842.2,1841.8,6.25883246]
[1746672114379,5.46892996,1842.2,1842.1,0.21570563]
[1746672114576,5.42859267,1842.1,1841.8,0.8295]
[1746672114776,6.51816636,1842.2,1841.8,6.25894917]
[1746672115006,6.55863369,1842.2,1841.8,6.25894917]
[1746672115215,6.55863369,1842.2,1841.8,0.8295]
[1746672115371,5.42858998,1842.1,1841.8,0.8295]
[1746672115717,5.42858998,1842.1,1841.9,0.21579113]
[1746672115921,6.86963511,1842.2,1841.8,6.25895292]
[1746672116072,6.86963511,1842.2,1841.9,0.21579113]
[1746672116401,5.46893138,1842.2,1841.8,6.25895292]
[1746672116589,5.42858693,1842.1,1842.0,0.21579113]
[1746672116791,5.42858693,1842.1,1841.8,0.8295]
[1746672116991,5.42858693,1842.1,1842.0,0.21579113]
[1746672117191,6.51833876,1842.1,1841.7,5.42964708]
[1746672117371,5.73958693,1842.1,1842.0,0.21579113]
[1746672117575,5.73958693,1842.1,1841.7,5.42964708]
[1746672117576,5.78005426,1842.1,1841.7,5.42964708]
[1746672117778,5.78005426,1842.1,1842.0,0.21579113]
[1746672117993,5.78005426,1842.1,1841.7,5.42964708]
[1746672118197,5.78005426,1842.1,1842.0,0.21596212]
[1746672118398,5.78005426,1842.1,1841.7,10.85921494]
[1746672118579,0.311,1842.1,1842.0,0.21596212]
[1746672118780,0.311,1842.1,1841.8,5.42944609]
[1746672118979,0.311,1842.1,1842.0,0.21596212]
[1746672119197,5.73972172,1842.1,1841.7,6.89111101]
[1746672119396,5.78018905,1842.1,1842.0,0.21596212]
[1746672119606,5.78018905,1842.1,1841.7,6.89111101]
[1746672119804,5.78018905,1842.1,1842.0,0.21596212]
[1746672119986,5.78018905,1842.1,1841.7,6.89111101]
[1746672120178,5.78018905,1842.1,1842.0,0.21596212]
[1746672120381,5.78018905,1842.1,1841.7,6.89111101]
[1746672120609,5.78018905,1842.1,1842.0,0.21596212]
[1746672120803,5.78018905,1842.1,1841.7,5.42967952]